Cogmind - Beta 13 @@@ ROGUE MODE // 2024.05.02 @ 18:43:16 Player: NikedNOGsing_in_can't Result: Destroyed by G0-HAT(R) with Subdweller Beam Cannon Performance ------------- Evolutions (0) 0 Regions Visited (2) 400 Robots Destroyed (33) 165 Value Destroyed (864) 864 Prototype IDs (3) 60 Alien Tech Used (0) 0 Bonus (0) 0 TOTAL SCORE: 1489 Bonus ------- None Cogmind --------- Core Integrity 0/250 Matter 270/300 Energy 186/200 System Corruption 0% Temperature Cool (9) Movement Treading (160) Location -10/Subcaves Parts ------- > --- POWER (1) -------- Subdweller Power Source > --- PROPULSION (2) --- Light Treads Light Treads > --- UTILITY (2) ------ Scrap Shield > --- WEAPON (2) ------- Medium Laser Beam Cannon > --- INVENTORY (5) ---- Light Treads Flight Unit High-capacity Matter Pod (200) Seismic Detector Mining Laser Peak State ------------ > --- POWER ------------ Ion Engine > --- PROPULSION ------- Light Treads Light Treads > --- UTILITY ---------- Huge Storage Unit Seismic Detector > --- WEAPON ----------- Light Assault Rifle Light Assault Rifle > --- INVENTORY -------- Light Treads Light Treads Light Treads Compact Wheel Flight Unit Heat Sink Large Storage Unit Medium Matter Pod High-capacity Matter Pod Improved Terrain Scanner Seismic Detector Transport Network Coupler Hacking Suite Hacking Suite Authchip [R/Combat] Authchip [R/Combat] Authchip [Propulsion] Authchip [Storage] Authchip [Armor] Authchip [Weapon] Medium Laser Mining Laser Scrap Shield Fragment Scrap Shield Fragment [Rating: 12] Favorites ----------- Power Ion Engine Engine Ion Engine Propulsion Light Treads Treads Light Treads Wheel Compact Wheel Utility Seismic Detector Device Seismic Detector Storage Huge Storage Unit Protection Scrap Shield Weapon Light Assault Rifle Energy Gun Medium Laser Energy Cannon Beam Cannon Ballistic Gun Light Assault Rifle Special Weapon Mining Laser Build | -11 -10 -10 ------- Run | Yrd Mat Sub Slots Evolved . | . . . Power . | . . . Propulsion . | . . . Utility . | . . . Weapon . | . . . Parts Attached 42 | 8 19 15 Power 3 | 1 1 1 Engine 3 | 1 1 1 Core . | . . . Reactor . | . . . Propulsion 11 | 2 5 4 Treads 8 | 2 3 3 Leg . | . . . Wheel 3 | . 2 1 Hover . | . . . Flight . | . . . Utility 7 | 3 3 1 Device 2 | 2 . . Storage 4 | 1 3 . Processor . | . . . Hackware . | . . . Protection 1 | . . 1 Artifact . | . . . Weapon 21 | 2 10 9 Energy Gun 4 | . 1 3 Energy Cannon 2 | . . 2 Ballistic Gun 9 | 2 5 2 Ballistic Cannon . | . . . Launcher . | . . . Special Weapon 6 | . 4 2 Impact Weapon . | . . . Slashing Weapon . | . . . Piercing Weapon . | . . . Special Melee Weapon . | . . . Unidentified Prototypes . | . . . Parts Lost 4 | . 2 2 Power 1 | . . 1 Propulsion . | . . . Utility . | . . . Weapon 3 | . 2 1 Highest Loss Streak 1 | . 1 1 To Critical Strikes . | . . . Average Slot Usage (%) 93 | . 100 82 Engine 11 | . 14 8 Treads 25 | . 26 23 Wheel 2 | . 1 4 Device 10 | . 14 4 Storage 10 | . 14 4 Protection 3 | . . 9 Energy Gun 6 | . 4 10 Energy Cannon 3 | . . 8 Ballistic Gun 13 | . 20 3 Special Weapon 3 | . 3 4 Naked Turns . | . . . Heaviest Build 89 | 14 89 89 Greatest Support 40 | 40 40 40 Greatest Overweight (x) 5 | . 5 5 Average Overweight (x) . | . 1 . Largest Inventory Capacity 25 | 8 25 25 Average Capacity 16 | 7 20 11 Most Carried 24 | 8 24 24 Average Carried 13 | 4 16 10 Final Capacity 25 | 8 25 5 Final Carried 23 | 8 23 5 Class Distribution -------------------- 97% | Mutant Dominant Class ---------------- Mutant | -10/Materials Mutant | -10/Subcaves Resources | -11 -10 -10 ----------- Run | Yrd Mat Sub Matter Collected 1149 | 352 615 182 Remotely . | . . . Salvage Created 1223 | 151 601 471 Parts 75 | 13 35 27 Haulers Intercepted 1 | . 1 . Recyclers Shooed . | . . . Parts Field Recycled . | . . . Retrieved Matter . | . . . Parts Self-Destructed 18 | . . 18 Prevented . | . . . Kills | -11 -10 -10 ------- Run | Yrd Mat Sub Combat Hostiles Destroyed 23 | . 11 12 Guns 18 | . 11 7 Cannons 5 | . . 5 Classes Destroyed 9 | 3 3 3 Worker 2 | 1 1 . Tunneler 4 | 4 . . Hauler 1 | . 1 . Recycler 2 | 1 1 . Operator 1 | . 1 . Swarmer 3 | . . 3 Grunt 13 | . 11 2 Artisan 1 | . . 1 Subdweller 7 | . . 7 Best Kill Streak 3 | 2 3 3 Combat Bots Only 3 | . 3 3 Max Kills in Single Turn 1 | 1 1 1 Gunslinging . | . . . Exploded . | . . . Melee . | . . . Uniques/NPCs Destroyed . | . . . Combat | -11 -10 -10 -------- Run | Yrd Mat Sub Hostile Shots Fired 146 | . 73 73 Missed 50 | . 25 25 Damage Taken 1638 | . 752 886 Core 266 | . 128 138 Absorbed by Shields . | . . . Core Remaining (%) 100 | 100 . . Volleys Fired 179 | 17 77 85 Largest 2 | 2 2 2 Hottest 110 | 40 100 110 Shots Fired 276 | 34 139 103 Gun 234 | 34 126 74 Cannon 19 | . . 19 Launcher . | . . . Special 23 | . 13 10 Kinetic 190 | 34 117 39 Thermal 86 | . 22 64 Explosive . | . . . Electromagnetic . | . . . Robot Hit Streak 14 | 6 13 14 Robot Miss Streak 4 | 3 2 4 Penetration Max . | . . . Secondary Targets 1 | . 1 . Max Gunslinging Chain 1 | . 1 . Shots Hit Robots 181 | 22 97 62 Core Hits 74 | 9 39 26 Critical Kills 1 | . 1 . Critical Parts Destroyed 2 | . . 2 Critical Strikes 6 | . 1 5 Burn 2 | . . 2 Destroy 4 | . 1 3 Melee Attacks . | . . . Impact . | . . . Slashing . | . . . Piercing . | . . . Sneak Attacks . | . . . Combat Hostiles . | . . . Follow-up Attacks . | . . . Damage Inflicted 2142 | 233 966 943 Guns 1909 | 233 966 710 Cannons 209 | . . 209 Explosions . | . . . Melee . | . . . Ramming . | . . . Kinetic 1453 | 233 868 352 Thermal 689 | . 98 591 Explosive . | . . . Electromagnetic . | . . . Impact . | . . . Slashing . | . . . Piercing . | . . . Highest Corruption . | . . . Average Corruption . | . . . Corruption Purged . | . . . Corruption Blocked . | . . . Overload Shots . | . . . Overflow Damage . | . . . Projectiles . | . . . Explosions . | . . . Melee . | . . . Knockbacks . | . . . Impact . | . . . Kinetic . | . . . Secondary . | . . . Self-Inflicted Damage . | . . . Shots . | . . . Rammed . | . . . Targets Rammed . | . . . Kicked . | . . . Crushed . | . . . Highest Temperature 136 | . 136 10 Average Temperature 29 | . 30 7 Received Heat Transfer 498 | . 300 198 Siege Activations . | . . . Robots Corrupted . | . . . Combat Hostiles . | . . . Parts Fried . | . . . Impact Corruptions . | . . . Robots Melted . | . . . Combat Hostiles . | . . . Parts Melted . | . . . Heat Transferred 2011 | . 296 1715 Parts Sabotaged . | . . . Parts Stolen . | . . . Parts Stripped . | . . . Power Chain Reactions . | . . . Alert | -11 -10 -10 ------- Run | Yrd Mat Sub Peak Influence 180 | 30 180 . Initial 19 | . 19 . Average 49 | 15 54 . Maximum Alert Level . | . . . Low Security (%) 100 | 100 100 . Level 1 . | . . . Level 2 . | . . . Level 3 . | . . . Level 4 . | . . . Level 5 . | . . . High Security . | . . . Max Security . | . . . Squads Dispatched 6 | . 6 . Investigation 3 | . 3 . Extermination . | . . . Reinforcement 3 | . 3 . Assault . | . . . Garrison . | . . . Intercept . | . . . Searches Triggered . | . . . Construction Impeded . | . . . Haulers Reinforced . | . . . Active Scanning Responses . | . . . Cargo Convoy Interrupts . | . . . Stealth | -11 -10 -10 --------- Run | Yrd Mat Sub Distress Signals 3 | . 3 . Communications Jammed . | . . . Distress Signals . | . . . Times Spotted 41 | . 27 14 Peak Tracking Total 4 | . 4 3 Tactical Retreats 4 | . 4 . Traps | -11 -10 -10 ------- Run | Yrd Mat Sub Traps Triggered 3 | . 3 . Indirectly . | . . . Trap Hack Attempts . | . . . Triggered . | . . . Disarmed . | . . . Reprogrammed . | . . . Reused 1 | . . 1 Traps Extracted . | . . . Installed 1 | . . 1 Triggered . | . . . Most Traps Carried 1 | . . 1 Machines | -11 -10 -10 ---------- Run | Yrd Mat Sub Machines Disabled . | . . . Max in Single Turn . | . . . Machines Repaired . | . . . Machines Dismantled . | . . . Machines Sabotaged . | . . . Overloaded Fab Kills . | . . . Hacking | -11 -10 -10 --------- Run | Yrd Mat Sub Machines Accessed 5 | . 5 . Terminals 5 | . 5 . Fabricators . | . . . Repair Stations . | . . . Recycling Units . | . . . Scanalyzers . | . . . Garrison Access . | . . . Total Hacks 11 | . 11 . Successful 7 | . 7 . Failed 4 | . 4 . Catastrophic 2 | . 2 . Database Lockouts . | . . . Manual 3 | . 3 . Terminals 11 | . 11 . Fabricators . | . . . Repair Stations . | . . . Recycling Units . | . . . Scanalyzers . | . . . Garrison Access . | . . . Terminal Hacks 6 | . 6 . Robot Analysis 2 | . 2 . Prototype ID Bank 2 | . 2 . Patrol Status 1 | . 1 . Zone Layout 1 | . 1 . Fabricator Hacks . | . . . Repair Station Hacks . | . . . Recycling Unit Hacks . | . . . Scanalyzer . | . . . Garrison Access Hacks . | . . . Unauthorized Hacks 1 | . 1 . Terminals 1 | . 1 . Botnet 1 | . 1 . Fabricators . | . . . Repair Stations . | . . . Recycling Units . | . . . Scanalyzers . | . . . Garrison Access . | . . . Data Cores Recovered . | . . . Used . | . . . Hacking Detections 4 | . 4 . Full Trace Events . | . . . Feedback Events . | . . . Feedback Blocked . | . . . Robot Schematics Acquired . | . . . Robots Built . | . . . Authchips . | . . . Time . | . . . Total Robot Build Rating . | . . . Part Schematics Acquired . | . . . Parts Built . | . . . Authchips . | . . . Time . | . . . Total Part Build Rating . | . . . Parts Repaired . | . . . Time . | . . . Parts Recycled . | . . . Recycled Matter . | . . . Retrieved Matter . | . . . Retrieved Components . | . . . Parts Scanalyzed . | . . . Part Schematics Acquired . | . . . Parts Damaged . | . . . Bothacking | -11 -10 -10 ------------ Run | Yrd Mat Sub Used RIF Installer . | . . . Robots Hacked . | . . . Non-combat . | . . . Combat . | . . . Robot Hacks Applied . | . . . Relay Couplers Released . | . . . Fabnet Peak Effective % . | . . . Robots Rewired . | . . . Allies Hacked . | . . . Hacks Repelled . | . . . Allies | -11 -10 -10 -------- Run | Yrd Mat Sub Total Allies . | . . . Largest Group . | . . . Highest-Rated Group . | . . . Highest-Rated Ally . | . . . Total Orders . | . . . Ally Attacks . | . . . Total Damage . | . . . Kills . | . . . Allies Corrupted . | . . . Allies Melted . | . . . Intel | -11 -10 -10 ------- Run | Yrd Mat Sub Robot Analysis Total 2 | . 2 . Derelict Logs Recovered 2 | . . 2 Drone Launches . | . . . Drone Recoveries . | . . . Exploration | -11 -10 -10 ------------- Run | Yrd Mat Sub Turns Passed 3876 | 282 2128 1466 Spaces Moved 1435 | 132 693 610 Core 4 | 4 . . Treads 1298 | 128 598 572 Legs . | . . . Wheels 133 | . 95 38 Hover . | . . . Flight . | . . . Fastest Speed 50 | 50 115 115 Average Speed 206 | 156 226 193 Slowest Speed 480 | 160 320 480 Overloaded Moves . | . . . Propulsion Burnouts . | . . . Robots Hopped . | . . . Cave-ins Triggered . | . . . Exploration Rate (%) 42 | 6 91 31 Regions Visited 2 Branch Regions 1 Pre-discovered Areas 1 | . . 1 Known Exits Taken . | . . . Unknown Exits Taken 2 | 1 1 . Scrap Searched 1 | . . 1 Spaces Dug 7 | . 7 . Terrain Destroyed 13 | . 13 . Melee . | . . . Projectile 13 | . 13 . AOE . | . . . Terrain Rammed . | . . . Walls Destroyed . | . . . Machines Disabled . | . . . Actions | -11 -10 -10 --------- Run | Yrd Mat Sub Total 2046 | 175 1101 770 Wait 328 | 6 285 37 Move 1433 | 131 692 610 Hop . | . . . Pick Up 37 | 10 21 6 Fast Attach 10 | 7 . 3 Attach 3 | . 2 1 Detach 1 | . . 1 Swap 29 | 1 17 11 Drop 19 | 3 7 9 Fire 179 | 17 77 85 Melee . | . . . Ram . | . . . Kick . | . . . Crush . | . . . Escape Stasis . | . . . Rewire . | . . . Trap 1 | . . 1 Miscellaneous 6 | . . 6 Route ------- -11/Scrapyard -10/Materials (discovered 6 exits: [*Mat x3] / [*Min x2] / [*Sub]) -10/Subcaves History --------- Turn | Location | Event 11 | -11/Scrapyard | Discovered new exit (range 13) 283 | -11/Scrapyard | Entered Materials 303 | -10/Materials | Build established: Mutant 465 | -10/Materials | Discovered new exit (range 8) 750 | -10/Materials | Discovered new exit (range 12) 883 | -10/Materials | Derelicts attacked the area 912 | -10/Materials | Discovered new exit (range 16) 1752 | -10/Materials | Core integrity fell below 50% 1821 | -10/Materials | Discovered new exit (range 4) 1920 | -10/Materials | Discovered new exit (range 7) 2395 | -10/Materials | Discovered new exit (range 5) 2411 | -10/Materials | Entered Subcaves 2434 | -10/Subcaves | Learned location of Zion (-7) 2872 | -10/Subcaves | Core integrity fell below 20% 3816 | -10/Subcaves | Learned Materials terminal intel 3860 | -10/Subcaves | Ambushed by Subdwellers from Twisted Machinery 3877 | -10/Subcaves | Destroyed by G0-HAT(R) with Subdweller Beam Cannon Last Messages --------------- 03573_ Subatomizers dissect the Transport Network Coupler. 03582_ Acquired Mining Laser. 03583_ Subatomizers dissect the Sub. Optics. 03593_ Acquired 10 matter. 03661_ AN-ZQ7(u) deconstructs Twisted Machinery. 03679_ G-47 Trooper destroyed. 03687_ Aluminum Leg fries itself beyond repair. 03687_ Lgt. Nuclear Core fries itself beyond repair. 03689_ G-34 Mercenary destroyed. 03693_ Aluminum Leg fries itself beyond repair. 03693_ Ion Engine fries itself beyond repair. 03697_ Acquired 20 matter. 03704_ Heat Sink fries itself beyond repair. 03816_ Acquired derelict log, extracted data. Data stored: Materials terminal intel. 03860_ G0-HAT(R) emerges from the Twisted Machinery. Map ----- +----------------------------------------------------+ | ?????????????????????????????????????????????????? | | ?????????????????????????????????????????????????? | | ?????????????????????????????????????????????????? | | ?????????????????????????????????????????????????? | | ?????????????????????????????????????????????????? | | ?????????????????????????????????????????????????? | | ?????????????????????????????????????????????????? | | ?????????????????????????????????????????????????? | | ?????????????????????????????????????????????????? | | ?????????????????????????????????????????????????? | | ?????????????????????????????????????????????????? | | ?????????????????????????????????????????????????? | | ??????????????? ?????????????????????????????????? | | ???????????????? ?? ??##????????????????????????? | | ????????????????" "? ## "????????????????????????? | | ?????????????????" "? """#???????????????????????? | | ??????????????????" "" " ###????????????????????? | | ??????????????????"" "" " ????????????????????? | | ??????????????????? "" ?????????????????????? | | ???????????????????? " " ?????????????????????? | | ?????????????????????? # #?????????????????????? | | ???????????????????????# #########?????????????? | | ????????????????????????#RR# #?????????????? | | ????????????????????????# #?????????????? | | ???????????????????????## #?????????????? | | ???????????????????????# @ ## ## ##????????????? | | ???????????????????????######### #????????????? | | ???????????????????????????????## #????????????? | | ???????????????????????????????# #????????????? | | ???????????????????????????????# #????????????? | | ???????????????????????????????# # ##???????????? | | ???????????????????????????????### # #???????????? | | ???????????????????????????????### # #???????????? | | ???????????????????????????????# # ##???????????? | | ???????????????????????????????# # ##????????????? | | ???????????????????????????????# ##?????????????? | | ??????????????????????????????## #?????????????? | | ???????????????????????????##?# ###????????????? | | ??????????????????????????## # # ##???????????? | | ?????????????????????#????# ## "#???????????? | | ?????????????????????# ??# # ""##??????????? | | ????????????????????## ?## # """#######????? | | ????????????????????# ## """ "" ##???? | | ????????????????????# "## "" #???? | | ????????????????????#### #?#"" ????? | | ???????????????????????## #??#"" #????? | | ????????????????????????# "#### " #????? | | ????????????????????????# """" " ##?### | | ?? ##?????????????????# " " """"" ###" | | ? ?????????????????# ##"" " " " | +----------------------------------------------------+ Best States ------------- Heat Dissipation 25 Energy Generation 10 Energy Capacity 250 Matter Stores 300 Matter Capacity 300 Sight Range 16 Terrain Scan Density 10 Armor Coverage 800 Evasion (%) 40 Recoil Reduction 2 Authchip Count 6 Item Schematics ----------------- None Robot Schematics ------------------ None Fabricated ------------ Nothing Alien Tech Used ----------------- None Achievements -------------- None Challenges ------------ None Game ------ Seed LauncherMagneticGravjet Manual? 0 Play Time 00:26:59 Cumulative 68.7 hours Start 2024.05.02 @ 18:18:43 End 2024.05.02 @ 18:43:16 Sessions 1 Manual Loads 0 Difficulty Rogue Special Mode None Game No. 36 Rogue 36 Adventurer 0 Explorer 0 Win Type - Total 0 Types 0/0/0/0/0/0/0/0/0 Lore% 42 Gallery% 53 Achievement% 41 Wizard Run 0 Options --------- Layout 1 ASCII 0 Keyboard 0 Movement Mouse Keybinds 0 Fullscreen 1 Font 24/Smallcaps Map View 50x35 Zoom Use 0% Tactical HUD 1 Map Filters NONE Filters NONE Steam 1 RUN: 53ed3983-3d04-4b45-9510-ef73811aa377